[Event "Late-Titled-Tuesday-Blitz-October-24-2023"]
[Site "Chess.com"]
[Date "2023.10.24"]
[Round "8"]
[White "dropstoneDP"]
[Black "Duhless"]
[Result "1/2-1/2"]
[WhiteElo "3108"]
[BlackElo "3122"]
[TimeControl "180+1"]
[EndTime "15:20:24 PDT"]
[Termination "Game drawn by agreement"]

1. e4 {[%clk 0:03:00.9]} 1... e5 {[%clk 0:03:00.3]} 2. Nf3 {[%clk 0:03:00.9]}
2... Nc6 {[%clk 0:03:00.6]} 3. Bb5 {[%clk 0:03:01.5]} 3... a6 {[%clk 0:03:00.4]}
4. Ba4 {[%clk 0:03:02]} 4... Nf6 {[%clk 0:03:01]} 5. d3 {[%clk 0:03:02.5]} 5...
b5 {[%clk 0:03:00.7]} 6. Bb3 {[%clk 0:03:02.7]} 6... Bc5 {[%clk 0:03:01.4]} 7.
a4 {[%clk 0:03:02.2]} 7... Rb8 {[%clk 0:03:00.4]} 8. O-O {[%clk 0:03:02.2]} 8...
d6 {[%clk 0:02:59.9]} 9. axb5 {[%clk 0:03:02.3]} 9... axb5 {[%clk 0:02:59.9]}
10. Nc3 {[%clk 0:03:01.8]} 10... h6 {[%clk 0:02:56.8]} 11. Be3 {[%clk
0:03:00.8]} 11... O-O {[%clk 0:02:47.1]} 12. h3 {[%clk 0:03:00.6]} 12... Bxe3
{[%clk 0:02:38.6]} 13. fxe3 {[%clk 0:03:01.5]} 13... Be6 {[%clk 0:02:31.1]}
1/2-1/2

[Event "Late-Titled-Tuesday-Blitz-October-24-2023"]
[Site "Chess.com"]
[Date "2023.10.24"]
[Round "8"]
[White "Freeeeeeeeeeeeeeeeee"]
[Black "rikchessmx"]
[Result "1-0"]
[WhiteElo "2050"]
[BlackElo "2268"]
[TimeControl "180+1"]
[EndTime "15:21:15 PDT"]
[Termination "Freeeeeeeeeeeeeeeeee won by checkmate"]

1. Nc3 {[%clk 0:03:00.9]} 1... d5 {[%clk 0:03:00.9]} 2. Nf3 {[%clk 0:02:58.3]}
2... f6 {[%clk 0:02:59.3]} 3. e4 {[%clk 0:02:55.7]} 3... d4 {[%clk 0:02:59.3]}
4. Ne2 {[%clk 0:02:56.4]} 4... e5 {[%clk 0:02:59.3]} 5. Ng3 {[%clk 0:02:57]}
5... c5 {[%clk 0:02:56.8]} 6. Bb5+ {[%clk 0:02:43.6]} 6... Nd7 {[%clk
0:02:54.9]} 7. Nxe5 {[%clk 0:02:35.4]} 7... fxe5 {[%clk 0:02:21.8]} 8. Qh5+
{[%clk 0:02:28.5]} 8... Ke7 {[%clk 0:02:21.8]} 9. Nf5+ {[%clk 0:02:28.3]} 9...
Ke6 {[%clk 0:02:11.1]} 10. Bc4+ {[%clk 0:02:23.3]} 10... Kf6 {[%clk 0:02:08.6]}
11. Qf7+ {[%clk 0:02:19.4]} 11... Kg5 {[%clk 0:02:07]} 12. d3+ {[%clk
0:02:13.7]} 12... Kg4 {[%clk 0:02:06.7]} 13. h3# {[%clk 0:02:11.6]} 1-0

[Event "Late-Titled-Tuesday-Blitz-October-24-2023"]
[Site "Chess.com"]
[Date "2023.10.24"]
[Round "8"]
[White "HouseOfDurin"]
[Black "miraitrunks"]
[Result "1-0"]
[WhiteElo "2309"]
[BlackElo "2101"]
[TimeControl "180+1"]
[EndTime "15:21:32 PDT"]
[Termination "HouseOfDurin won by resignation"]

1. d4 {[%clk 0:03:00.9]} 1... Nf6 {[%clk 0:02:59.7]} 2. Bg5 {[%clk 0:03:01]}
2... Ne4 {[%clk 0:02:59.8]} 3. Bf4 {[%clk 0:03:01.3]} 3... d5 {[%clk 0:03:00.5]}
4. Nd2 {[%clk 0:03:01.3]} 4... Nxd2 {[%clk 0:03:00.7]} 5. Qxd2 {[%clk
0:03:02.2]} 5... Bf5 {[%clk 0:03:00.4]} 6. e3 {[%clk 0:03:01.6]} 6... e6 {[%clk
0:03:00.8]} 7. Bd3 {[%clk 0:03:02]} 7... Bxd3 {[%clk 0:03:01.1]} 8. Qxd3 {[%clk
0:03:02.9]} 8... Bd6 {[%clk 0:03:01.8]} 9. Qb5+ {[%clk 0:02:56.3]} 9... Nd7
{[%clk 0:02:58.1]} 10. Bxd6 {[%clk 0:02:55.1]} 10... cxd6 {[%clk 0:02:59]} 11.
Qxb7 {[%clk 0:02:55.3]} 11... Rb8 {[%clk 0:02:58.5]} 12. Qxa7 {[%clk 0:02:54.2]}
12... Rxb2 {[%clk 0:02:57.2]} 13. Qa3 {[%clk 0:02:45.5]} 13... Rxc2 {[%clk
0:02:54]} 14. Ne2 {[%clk 0:02:44.9]} 14... O-O {[%clk 0:02:53.1]} 15. Rc1 {[%clk
0:02:24.4]} 15... Qc7 {[%clk 0:02:50.1]} 16. O-O {[%clk 0:02:20.3]} 16... Rc8
{[%clk 0:02:40.3]} 17. Rxc2 {[%clk 0:02:15.2]} 17... Qxc2 {[%clk 0:02:39.3]} 18.
Rc1 {[%clk 0:02:12.9]} 18... Qxe2 {[%clk 0:02:38.2]} 19. Rxc8+ {[%clk
0:02:12.5]} 19... Nf8 {[%clk 0:02:39.1]} 20. g3 {[%clk 0:02:01.3]} 20... h5
{[%clk 0:02:34]} 21. Qxd6 {[%clk 0:01:56.1]} 1-0

[Event "Late-Titled-Tuesday-Blitz-October-24-2023"]
[Site "Chess.com"]
[Date "2023.10.24"]
[Round "8"]
[White "GMG"]
[Black "The_Sherman_Variation"]
[Result "0-1"]
[WhiteElo "2742"]
[BlackElo "2585"]
[TimeControl "180+1"]
[EndTime "15:23:24 PDT"]
[Termination "The_Sherman_Variation won on time"]

1. Nf3 {[%clk 0:02:57.3]} 1... e6 {[%clk 0:03:00.9]} 2. g3 {[%clk 0:02:57.3]}
2... d5 {[%clk 0:03:01.8]} 3. Bg2 {[%clk 0:02:57.9]} 3... Nf6 {[%clk 0:03:01.5]}
4. O-O {[%clk 0:02:58.5]} 4... Be7 {[%clk 0:03:02.4]} 5. c4 {[%clk 0:02:58.9]}
5... O-O {[%clk 0:03:03.3]} 6. d4 {[%clk 0:02:57.8]} 6... dxc4 {[%clk
0:03:03.6]} 7. Qc2 {[%clk 0:02:56.9]} 7... b5 {[%clk 0:03:04.2]} 8. a4 {[%clk
0:02:56.3]} 8... b4 {[%clk 0:03:04.5]} 9. Ne5 {[%clk 0:02:54.5]} 9... Qxd4
{[%clk 0:03:04.1]} 10. Nxc4 {[%clk 0:02:49.7]} 10... Nd5 {[%clk 0:03:00.5]} 11.
Nbd2 {[%clk 0:02:49.8]} 11... Ba6 {[%clk 0:02:56.9]} 12. Rd1 {[%clk 0:02:37.5]}
12... Nc6 {[%clk 0:02:48.3]} 13. e3 {[%clk 0:02:28.7]} 13... Qc5 {[%clk
0:02:47.3]} 14. b3 {[%clk 0:02:28.2]} 14... Nc3 {[%clk 0:02:46]} 15. Ne4 {[%clk
0:02:24.4]} 15... Nxe4 {[%clk 0:02:38.2]} 16. Qxe4 {[%clk 0:02:25.3]} 16... Rad8
{[%clk 0:02:38.3]} 17. Rxd8 {[%clk 0:02:20.6]} 17... Rxd8 {[%clk 0:02:39.2]} 18.
Bb2 {[%clk 0:02:11.8]} 18... Bxc4 {[%clk 0:02:39.2]} 19. bxc4 {[%clk 0:02:06.2]}
19... Na5 {[%clk 0:02:38.5]} 20. Rc1 {[%clk 0:02:05.9]} 20... Nb3 {[%clk
0:02:35.1]} 21. Qg4 {[%clk 0:01:08.2]} 21... Bf8 {[%clk 0:02:30.9]} 0-1

[Event "Late-Titled-Tuesday-Blitz-October-24-2023"]
[Site "Chess.com"]
[Date "2023.10.24"]
[Round "8"]
[White "cthake"]
[Black "APOKALIPSA13"]
[Result "0-1"]
[WhiteElo "1933"]
[BlackElo "2216"]
[TimeControl "180+1"]
[EndTime "15:23:32 PDT"]
[Termination "APOKALIPSA13 won by resignation"]

1. e4 {[%clk 0:03:00.9]} 1... e5 {[%clk 0:03:00.9]} 2. Nf3 {[%clk 0:03:00]} 2...
d5 {[%clk 0:03:00]} 3. exd5 {[%clk 0:02:49.8]} 3... e4 {[%clk 0:02:59.1]} 4. Qe2
{[%clk 0:02:50.1]} 4... Nf6 {[%clk 0:02:58.4]} 5. Nc3 {[%clk 0:02:47.1]} 5...
Be7 {[%clk 0:02:57.9]} 6. Nxe4 {[%clk 0:02:43.6]} 6... O-O {[%clk 0:02:57.6]} 7.
d3 {[%clk 0:02:37.1]} 7... Nxd5 {[%clk 0:02:56.8]} 8. Bd2 {[%clk 0:02:31.4]}
8... f5 {[%clk 0:02:53.6]} 9. Nc3 {[%clk 0:02:26.7]} 9... Bf6 {[%clk 0:02:51.7]}
10. O-O-O {[%clk 0:02:19.9]} 10... Re8 {[%clk 0:02:44.5]} 11. Be3 {[%clk
0:02:14.1]} 11... Bxc3 {[%clk 0:02:33.1]} 12. bxc3 {[%clk 0:02:12.5]} 12... Nxc3
{[%clk 0:02:32.7]} 13. Qd2 {[%clk 0:02:12.4]} 13... Nxd1 {[%clk 0:02:22.1]} 14.
Kxd1 {[%clk 0:02:12.7]} 14... Nc6 {[%clk 0:02:20.4]} 15. d4 {[%clk 0:02:03.2]}
15... Be6 {[%clk 0:02:16.1]} 16. a4 {[%clk 0:02:01.4]} 16... Qf6 {[%clk
0:02:10.2]} 17. Bd3 {[%clk 0:01:56.1]} 17... Rad8 {[%clk 0:02:08.4]} 18. c3
{[%clk 0:01:55.3]} 18... h6 {[%clk 0:02:06.8]} 19. Re1 {[%clk 0:01:51.9]} 19...
g5 {[%clk 0:02:03]} 20. h3 {[%clk 0:01:50.4]} 20... f4 {[%clk 0:02:01.6]} 21. d5
{[%clk 0:01:35.5]} 21... fxe3 {[%clk 0:01:52.3]} 22. Qc2 {[%clk 0:01:33]} 22...
exf2 {[%clk 0:01:44.1]} 23. Bh7+ {[%clk 0:01:32]} 23... Kg7 {[%clk 0:01:43.1]}
24. Rf1 {[%clk 0:01:29.4]} 24... Rxd5+ {[%clk 0:01:38.9]} 25. Kc1 {[%clk
0:01:24.4]} 25... Bf5 {[%clk 0:01:30.3]} 26. Bxf5 {[%clk 0:01:23.2]} 26... Rxf5
{[%clk 0:01:29.1]} 27. Nd4 {[%clk 0:01:19.6]} 27... Re1+ {[%clk 0:01:27.6]} 0-1

[Event "Late-Titled-Tuesday-Blitz-October-24-2023"]
[Site "Chess.com"]
[Date "2023.10.24"]
[Round "8"]
[White "DefiantChair"]
[Black "DanylaBagrov"]
[Result "1-0"]
[WhiteElo "2687"]
[BlackElo "2558"]
[TimeControl "180+1"]
[EndTime "15:23:47 PDT"]
[Termination "DefiantChair won by resignation"]

1. e4 {[%clk 0:03:00.9]} 1... d6 {[%clk 0:02:59.1]} 2. d4 {[%clk 0:03:00.7]}
2... Nf6 {[%clk 0:02:59.9]} 3. Nc3 {[%clk 0:03:01.4]} 3... e5 {[%clk 0:03:00.6]}
4. Nf3 {[%clk 0:03:01.3]} 4... Nbd7 {[%clk 0:03:00.5]} 5. Bc4 {[%clk 0:03:01.6]}
5... Be7 {[%clk 0:03:00.9]} 6. O-O {[%clk 0:03:00.9]} 6... O-O {[%clk
0:03:01.1]} 7. h3 {[%clk 0:03:01.5]} 7... c6 {[%clk 0:03:01.2]} 8. a4 {[%clk
0:03:01.7]} 8... a5 {[%clk 0:03:01.6]} 9. Be3 {[%clk 0:03:01.8]} 9... Qc7 {[%clk
0:03:01.7]} 10. Re1 {[%clk 0:03:02]} 10... Re8 {[%clk 0:02:58.2]} 11. Qd3 {[%clk
0:02:59.9]} 11... h6 {[%clk 0:02:58]} 12. d5 {[%clk 0:03:00.2]} 12... Nf8 {[%clk
0:02:38.2]} 13. Rad1 {[%clk 0:02:59.4]} 13... Ng6 {[%clk 0:02:34.8]} 14. Ba2
{[%clk 0:02:59.2]} 14... Nh5 {[%clk 0:02:26.2]} 15. Ne2 {[%clk 0:02:59]} 15...
Nhf4 {[%clk 0:02:18.9]} 16. Nxf4 {[%clk 0:02:57.7]} 16... exf4 {[%clk
0:02:19.8]} 17. Bd4 {[%clk 0:02:55.6]} 17... c5 {[%clk 0:02:10.9]} 18. Bc3
{[%clk 0:02:55.4]} 18... Bf8 {[%clk 0:01:50.3]} 19. e5 {[%clk 0:02:51.7]} 19...
Nxe5 {[%clk 0:01:46.8]} 20. Nxe5 {[%clk 0:02:50.7]} 20... dxe5 {[%clk
0:01:47.7]} 21. d6 {[%clk 0:02:50.7]} 21... Qd7 {[%clk 0:01:37.5]} 22. Bc4
{[%clk 0:02:44.1]} 22... e4 {[%clk 0:00:51.8]} 23. Rxe4 {[%clk 0:02:43.4]} 23...
Rxe4 {[%clk 0:00:52.7]} 24. Qxe4 {[%clk 0:02:44.3]} 24... Qf5 {[%clk 0:00:53.3]}
25. Qf3 {[%clk 0:02:33]} 25... Bd7 {[%clk 0:00:45.2]} 26. Qxb7 {[%clk
0:02:28.6]} 26... Re8 {[%clk 0:00:36.1]} 27. Bb5 {[%clk 0:02:23.8]} 27... Qxc2
{[%clk 0:00:29.7]} 28. Rf1 {[%clk 0:02:21.3]} 28... Bxb5 {[%clk 0:00:26.7]} 29.
Qxb5 {[%clk 0:02:21]} 29... Bxd6 {[%clk 0:00:26.8]} 30. Qxe8+ {[%clk 0:02:20.5]}
30... Kh7 {[%clk 0:00:24.9]} 31. Qxf7 {[%clk 0:02:20.3]} 1-0

[Event "Late-Titled-Tuesday-Blitz-October-24-2023"]
[Site "Chess.com"]
[Date "2023.10.24"]
[Round "8"]
[White "Maitreia"]
[Black "Payyappat"]
[Result "0-1"]
[WhiteElo "2627"]
[BlackElo "2535"]
[TimeControl "180+1"]
[EndTime "15:23:51 PDT"]
[Termination "Payyappat won by resignation"]

1. c4 {[%clk 0:03:00.9]} 1... c5 {[%clk 0:02:58.9]} 2. Nc3 {[%clk 0:03:00.8]}
2... Nc6 {[%clk 0:02:58.4]} 3. g3 {[%clk 0:03:01.3]} 3... Nf6 {[%clk 0:02:58.1]}
4. Bg2 {[%clk 0:03:01.9]} 4... g6 {[%clk 0:02:57.4]} 5. Nf3 {[%clk 0:03:02.4]}
5... Bg7 {[%clk 0:02:56.9]} 6. O-O {[%clk 0:03:03.1]} 6... O-O {[%clk 0:02:55]}
7. d3 {[%clk 0:03:03.7]} 7... b6 {[%clk 0:02:53.1]} 8. a3 {[%clk 0:02:59.8]}
8... Bb7 {[%clk 0:02:52.2]} 9. Rb1 {[%clk 0:03:00.4]} 9... d5 {[%clk 0:02:50.7]}
10. cxd5 {[%clk 0:03:00.8]} 10... Nxd5 {[%clk 0:02:51.6]} 11. Nxd5 {[%clk
0:03:00.8]} 11... Qxd5 {[%clk 0:02:51.3]} 12. b4 {[%clk 0:03:01.1]} 12... cxb4
{[%clk 0:02:46.5]} 13. axb4 {[%clk 0:03:02]} 13... Nd4 {[%clk 0:02:44.4]} 14.
Be3 {[%clk 0:03:00.7]} 14... Rfd8 {[%clk 0:02:42]} 15. Bxd4 {[%clk 0:02:55.4]}
15... Bxd4 {[%clk 0:02:41.3]} 16. Qa4 {[%clk 0:02:53.2]} 16... b5 {[%clk
0:02:37.3]} 17. Qa3 {[%clk 0:02:36.2]} 17... Rac8 {[%clk 0:02:36.2]} 18. Rfc1
{[%clk 0:02:32.5]} 18... Bb6 {[%clk 0:02:35]} 19. h4 {[%clk 0:02:22.5]} 19... e5
{[%clk 0:02:26.9]} 20. Kh2 {[%clk 0:02:15.5]} 20... Bxf2 {[%clk 0:02:22.1]} 21.
Rxc8 {[%clk 0:02:13]} 21... Rxc8 {[%clk 0:02:19.3]} 22. Rc1 {[%clk 0:02:11.7]}
22... Rxc1 {[%clk 0:02:15.3]} 23. Qxc1 {[%clk 0:02:12.6]} 23... e4 {[%clk
0:02:14.2]} 24. Ng5 {[%clk 0:02:01.4]} 24... Qe5 {[%clk 0:02:04.8]} 25. Qf4
{[%clk 0:01:40.5]} 25... Qxf4 {[%clk 0:02:03.4]} 26. gxf4 {[%clk 0:01:41.4]}
26... exd3 {[%clk 0:02:02]} 27. exd3 {[%clk 0:01:39.5]} 27... Bxg2 {[%clk
0:02:01.3]} 28. Kxg2 {[%clk 0:01:40.2]} 28... Bxh4 {[%clk 0:02:02.2]} 29. Ne4
{[%clk 0:01:39.7]} 29... Be1 {[%clk 0:02:00.4]} 30. Nd6 {[%clk 0:01:36.2]} 30...
a6 {[%clk 0:01:55.9]} 31. Kf3 {[%clk 0:01:23.2]} 31... Bxb4 {[%clk 0:01:54.9]}
32. Ne8 {[%clk 0:01:18]} 32... Bc3 {[%clk 0:01:43.2]} 33. Nc7 {[%clk 0:01:15.3]}
33... b4 {[%clk 0:01:42.2]} 34. Nd5 {[%clk 0:01:02.8]} 34... a5 {[%clk
0:01:41.2]} 35. Ke2 {[%clk 0:01:03.5]} 35... a4 {[%clk 0:01:40.9]} 36. Kd1
{[%clk 0:01:03.2]} 36... a3 {[%clk 0:01:41]} 37. Nxc3 {[%clk 0:01:03.8]} 37...
bxc3 {[%clk 0:01:40.5]} 38. d4 {[%clk 0:01:03.1]} 38... a2 {[%clk 0:01:41.4]}
0-1

[Event "Late-Titled-Tuesday-Blitz-October-24-2023"]
[Site "Chess.com"]
[Date "2023.10.24"]
[Round "8"]
[White "jcibarra"]
[Black "TanitoluwaAps116"]
[Result "1-0"]
[WhiteElo "2917"]
[BlackElo "2656"]
[TimeControl "180+1"]
[EndTime "15:24:15 PDT"]
[Termination "jcibarra won on time"]

1. e4 {[%clk 0:03:00.9]} 1... c5 {[%clk 0:02:55.8]} 2. Nf3 {[%clk 0:02:59.6]}
2... Nc6 {[%clk 0:02:51.5]} 3. Nc3 {[%clk 0:02:58.9]} 3... Nf6 {[%clk
0:02:48.2]} 4. d4 {[%clk 0:02:58.7]} 4... cxd4 {[%clk 0:02:48.3]} 5. Nxd4 {[%clk
0:02:59.6]} 5... e5 {[%clk 0:02:48.6]} 6. Ndb5 {[%clk 0:02:59.9]} 6... d6 {[%clk
0:02:49]} 7. Bg5 {[%clk 0:03:00.3]} 7... a6 {[%clk 0:02:49.3]} 8. Na3 {[%clk
0:03:00.4]} 8... b5 {[%clk 0:02:49.8]} 9. Bxf6 {[%clk 0:03:01]} 9... gxf6 {[%clk
0:02:49.8]} 10. Nd5 {[%clk 0:03:01.7]} 10... f5 {[%clk 0:02:50.4]} 11. g3 {[%clk
0:03:01.9]} 11... Bg7 {[%clk 0:02:46.2]} 12. Bg2 {[%clk 0:03:01.2]} 12... O-O
{[%clk 0:02:45.9]} 13. exf5 {[%clk 0:03:01.3]} 13... Bxf5 {[%clk 0:02:44.3]} 14.
Ne3 {[%clk 0:03:01.4]} 14... Bd7 {[%clk 0:02:36.7]} 15. Qxd6 {[%clk 0:03:00.2]}
15... Rc8 {[%clk 0:02:32.6]} 16. O-O-O {[%clk 0:03:00.1]} 16... Nd4 {[%clk
0:02:30]} 17. Kb1 {[%clk 0:02:57.6]} 17... Re8 {[%clk 0:02:21.8]} 18. c3 {[%clk
0:02:48.1]} 18... Re6 {[%clk 0:01:54.8]} 19. Qd5 {[%clk 0:02:45.4]} 19... b4
{[%clk 0:01:23.1]} 20. cxd4 {[%clk 0:02:32.6]} 20... bxa3 {[%clk 0:01:22.4]} 21.
dxe5 {[%clk 0:02:33.2]} 21... Qb6 {[%clk 0:01:00.9]} 22. Qb3 {[%clk 0:02:33.1]}
22... Bb5 {[%clk 0:00:39.7]} 23. Bh3 {[%clk 0:02:19.5]} 23... Bxe5 {[%clk
0:00:04.4]} 24. Bxe6 {[%clk 0:02:15.3]} 24... fxe6 {[%clk 0:00:05.3]} 25. Rhe1
{[%clk 0:01:53.7]} 25... Bxb2 {[%clk 0:00:02.4]} 26. Nf5 {[%clk 0:01:47.9]} 1-0

[Event "Late-Titled-Tuesday-Blitz-October-24-2023"]
[Site "Chess.com"]
[Date "2023.10.24"]
[Round "8"]
[White "Deeper44"]
[Black "FedaMaster"]
[Result "0-1"]
[WhiteElo "2542"]
[BlackElo "2666"]
[TimeControl "180+1"]
[EndTime "15:24:15 PDT"]
[Termination "FedaMaster won by checkmate"]

1. d4 {[%clk 0:02:59.8]} 1... d5 {[%clk 0:02:59.4]} 2. c4 {[%clk 0:03:00.3]}
2... e5 {[%clk 0:02:57.9]} 3. dxe5 {[%clk 0:02:59.6]} 3... d4 {[%clk 0:02:58.8]}
4. Nf3 {[%clk 0:02:59.9]} 4... Nc6 {[%clk 0:02:59.7]} 5. a3 {[%clk 0:03:00.1]}
5... Nge7 {[%clk 0:02:59.3]} 6. b4 {[%clk 0:02:59.5]} 6... Ng6 {[%clk
0:02:59.6]} 7. Bb2 {[%clk 0:03:00.1]} 7... a5 {[%clk 0:02:59.5]} 8. b5 {[%clk
0:03:00.1]} 8... Ncxe5 {[%clk 0:03:00.2]} 9. Nxe5 {[%clk 0:03:01]} 9... Nxe5
{[%clk 0:03:00.7]} 10. e3 {[%clk 0:03:01.6]} 10... Be6 {[%clk 0:03:00.1]} 11.
Bxd4 {[%clk 0:03:00.3]} 11... Nxc4 {[%clk 0:02:59.6]} 12. Qc2 {[%clk 0:03:00.7]}
12... Nd6 {[%clk 0:02:59.5]} 13. Bd3 {[%clk 0:02:59.9]} 13... Qg5 {[%clk
0:02:54]} 14. f4 {[%clk 0:02:58]} 14... Qd5 {[%clk 0:02:36.3]} 15. Nc3 {[%clk
0:02:04.2]} 15... Qb3 {[%clk 0:02:34.1]} 16. Qxb3 {[%clk 0:01:39]} 16... Bxb3
{[%clk 0:02:35]} 17. a4 {[%clk 0:01:32.4]} 17... Bc4 {[%clk 0:02:31.4]} 18. Bc2
{[%clk 0:01:25.4]} 18... O-O-O {[%clk 0:02:29.1]} 19. b6 {[%clk 0:01:17.9]}
19... c6 {[%clk 0:02:20]} 20. Kf2 {[%clk 0:01:15.1]} 20... f6 {[%clk 0:02:17.5]}
21. Rhc1 {[%clk 0:01:03.7]} 21... Ba6 {[%clk 0:02:17.5]} 22. Bb3 {[%clk
0:00:54.9]} 22... Kb8 {[%clk 0:02:00.5]} 23. Rd1 {[%clk 0:00:36.9]} 23... Be7
{[%clk 0:01:58.5]} 24. g4 {[%clk 0:00:28.7]} 24... h5 {[%clk 0:01:57.6]} 25. h3
{[%clk 0:00:19]} 25... hxg4 {[%clk 0:01:57.6]} 26. hxg4 {[%clk 0:00:19.2]} 26...
Rh2+ {[%clk 0:01:58.3]} 27. Kg3 {[%clk 0:00:19.9]} 27... Rdh8 {[%clk 0:01:58.5]}
28. f5 {[%clk 0:00:07.5]} 28... R8h3+ {[%clk 0:01:58.1]} 29. Kf4 {[%clk
0:00:08]} 29... Rf2# {[%clk 0:01:59]} 0-1

[Event "Late-Titled-Tuesday-Blitz-October-24-2023"]
[Site "Chess.com"]
[Date "2023.10.24"]
[Round "8"]
[White "YellowJacek"]
[Black "biostatistician"]
[Result "0-1"]
[WhiteElo "2325"]
[BlackElo "2596"]
[TimeControl "180+1"]
[EndTime "15:24:23 PDT"]
[Termination "biostatistician won by resignation"]

1. c4 {[%clk 0:02:55.5]} 1... Nf6 {[%clk 0:02:59.3]} 2. g3 {[%clk 0:02:54.7]}
2... g6 {[%clk 0:02:59.2]} 3. Bg2 {[%clk 0:02:55.1]} 3... Bg7 {[%clk 0:03:00.1]}
4. Nc3 {[%clk 0:02:55.1]} 4... O-O {[%clk 0:03:00.3]} 5. e4 {[%clk 0:02:55.3]}
5... c5 {[%clk 0:03:00]} 6. Nge2 {[%clk 0:02:55.4]} 6... Nc6 {[%clk 0:03:00.4]}
7. O-O {[%clk 0:02:54.7]} 7... Ne8 {[%clk 0:03:00.9]} 8. d3 {[%clk 0:02:54.4]}
8... Nc7 {[%clk 0:03:01]} 9. Be3 {[%clk 0:02:51.5]} 9... Ne6 {[%clk 0:03:01.2]}
10. Qd2 {[%clk 0:02:51.7]} 10... d6 {[%clk 0:03:00.9]} 11. Nd5 {[%clk
0:02:47.7]} 11... Ned4 {[%clk 0:03:00.2]} 12. Nxd4 {[%clk 0:02:42.6]} 12... Nxd4
{[%clk 0:03:01.1]} 13. b4 {[%clk 0:02:14.9]} 13... Bg4 {[%clk 0:02:48.7]} 14. f3
{[%clk 0:02:07.1]} 14... Bxf3 {[%clk 0:02:37.9]} 15. Bxf3 {[%clk 0:01:44.7]}
15... Nxf3+ {[%clk 0:02:37.7]} 16. Rxf3 {[%clk 0:01:45.6]} 16... Bxa1 {[%clk
0:02:37.9]} 17. bxc5 {[%clk 0:01:46.5]} 17... Bg7 {[%clk 0:02:10.9]} 18. cxd6
{[%clk 0:01:44.8]} 18... exd6 {[%clk 0:02:11.8]} 19. Bg5 {[%clk 0:01:33.8]}
19... f6 {[%clk 0:02:10.4]} 20. Bf4 {[%clk 0:01:33.2]} 20... Qd7 {[%clk
0:02:08.1]} 21. Qb4 {[%clk 0:01:31.2]} 21... Rad8 {[%clk 0:02:03.3]} 22. Kg2
{[%clk 0:01:28.5]} 22... b6 {[%clk 0:02:03.1]} 23. Rf1 {[%clk 0:01:23.9]} 23...
Kh8 {[%clk 0:02:02.5]} 24. Rf2 {[%clk 0:01:15.9]} 24... f5 {[%clk 0:02:02.4]}
25. exf5 {[%clk 0:01:11.4]} 25... Qxf5 {[%clk 0:02:00.2]} 26. Qd2 {[%clk
0:01:01.7]} 26... Bd4 {[%clk 0:01:50.4]} 27. Re2 {[%clk 0:00:23.2]} 27... g5
{[%clk 0:01:43.4]} 28. Ne7 {[%clk 0:00:22.8]} 28... Qf7 {[%clk 0:01:35]} 0-1

[Event "Late-Titled-Tuesday-Blitz-October-24-2023"]
[Site "Chess.com"]
[Date "2023.10.24"]
[Round "8"]
[White "TimGrutter03"]
[Black "Atanejhad"]
[Result "0-1"]
[WhiteElo "2520"]
[BlackElo "2409"]
[TimeControl "180+1"]
[EndTime "15:24:35 PDT"]
[Termination "Atanejhad won by checkmate"]

1. a3 {[%clk 0:03:00.9]} 1... e5 {[%clk 0:02:57.9]} 2. e4 {[%clk 0:03:01.1]}
2... Nf6 {[%clk 0:02:58.1]} 3. Nc3 {[%clk 0:03:01.3]} 3... d5 {[%clk 0:02:56.4]}
4. exd5 {[%clk 0:02:59.2]} 4... Nxd5 {[%clk 0:02:57.3]} 5. Qf3 {[%clk
0:02:56.5]} 5... c6 {[%clk 0:02:48.3]} 6. Bc4 {[%clk 0:02:54.3]} 6... Be6 {[%clk
0:02:48.7]} 7. Nge2 {[%clk 0:02:54.3]} 7... Be7 {[%clk 0:02:44.9]} 8. Qg3 {[%clk
0:02:52.5]} 8... O-O {[%clk 0:02:42.1]} 9. O-O {[%clk 0:02:50.1]} 9... Nd7
{[%clk 0:02:40.4]} 10. d3 {[%clk 0:02:47.1]} 10... Re8 {[%clk 0:02:29.1]} 11.
Kh1 {[%clk 0:02:39.4]} 11... Bh4 {[%clk 0:02:16.6]} 12. Qf3 {[%clk 0:02:33.3]}
12... N7b6 {[%clk 0:02:15.2]} 13. Ba2 {[%clk 0:02:25.5]} 13... f5 {[%clk
0:02:14.3]} 14. g3 {[%clk 0:02:16.6]} 14... Bf6 {[%clk 0:02:11.2]} 15. Nxd5
{[%clk 0:02:13]} 15... cxd5 {[%clk 0:02:08.7]} 16. d4 {[%clk 0:02:12.8]} 16...
e4 {[%clk 0:02:08.5]} 17. Qe3 {[%clk 0:02:12]} 17... Rc8 {[%clk 0:02:08.2]} 18.
c3 {[%clk 0:02:09.7]} 18... Nc4 {[%clk 0:02:08.7]} 19. Bxc4 {[%clk 0:02:09.5]}
19... Rxc4 {[%clk 0:02:08.9]} 20. Nf4 {[%clk 0:02:09.8]} 20... Bf7 {[%clk
0:02:09.3]} 21. b3 {[%clk 0:02:06.5]} 21... Rc6 {[%clk 0:02:01.6]} 22. h4 {[%clk
0:02:04.9]} 22... g5 {[%clk 0:01:57.7]} 23. hxg5 {[%clk 0:02:04.7]} 23... Bxg5
{[%clk 0:01:58.6]} 24. Bd2 {[%clk 0:01:58.3]} 24... Bh5 {[%clk 0:01:45.1]} 25.
c4 {[%clk 0:01:51.4]} 25... Bf3+ {[%clk 0:01:42.2]} 26. Kg1 {[%clk 0:01:51.1]}
26... Rh6 {[%clk 0:01:42.1]} 27. Ng2 {[%clk 0:01:41.3]} 27... Bxe3 {[%clk
0:01:31.6]} 28. Bxe3 {[%clk 0:01:42.2]} 28... Rb6 {[%clk 0:01:22.9]} 29. Rab1
{[%clk 0:01:34.2]} 29... Qd7 {[%clk 0:01:18.1]} 30. c5 {[%clk 0:01:30.8]} 30...
Rg6 {[%clk 0:01:12.6]} 31. Bf4 {[%clk 0:01:28.3]} 31... Bxg2 {[%clk 0:01:08.1]}
32. Kxg2 {[%clk 0:01:28.1]} 32... Qb5 {[%clk 0:01:08.6]} 33. b4 {[%clk
0:01:24.1]} 33... Qe2 {[%clk 0:01:06.9]} 34. Rb3 {[%clk 0:01:22.3]} 34... Qg4
{[%clk 0:01:05]} 35. Bd6 {[%clk 0:01:13]} 35... f4 {[%clk 0:01:04.2]} 36. Rg1
{[%clk 0:01:09.2]} 36... e3 {[%clk 0:00:59.2]} 37. Kf1 {[%clk 0:01:08.9]} 37...
exf2 {[%clk 0:00:57.2]} 38. Kxf2 {[%clk 0:01:06.3]} 38... Qe2# {[%clk
0:00:54.4]} 0-1